bitfinex-derivatives/quotes_BTCF0:USTF0_20240902
["timestamp","ask_amount","ask_price","bid_price","bid_amount"]
[1725289747212,0.0008,58732.0,58731.0,0.09030297]
[1725289747715,0.085139,58730.0,58727.0,0.085143]
[1725289747915,0.085142,58729.0,58727.0,0.085143]
[1725289748117,0.085142,58728.0,58727.0,0.08935931]
[1725289748316,0.133642,58728.0,58727.0,0.08935931]
[1725289748817,0.133642,58728.0,58727.0,0.085143]
[1725289749423,0.133642,58728.0,58727.0,0.086143]
[1725289749618,0.133642,58728.0,58727.0,0.087143]
[1725289750310,0.0008,58732.0,58727.0,0.087143]
[1725289750311,0.085937,58732.0,58731.0,0.085138]
[1725289750908,0.0008,58732.0,58727.0,0.087143]
[1725289751206,0.085142,58728.0,58727.0,0.087143]
[1725289753122,0.085142,58728.0,58727.0,0.086143]
[1725289754019,0.0008,58732.0,58731.0,0.085138]
[1725289754221,0.0008,58732.0,58731.0,0.731076]
[1725289756215,0.0008,58732.0,58731.0,0.734076]
[1725289756824,0.0008,58732.0,58731.0,0.735076]
[1725289757021,0.0008,58732.0,58731.0,0.827576]
[1725289757324,0.0008,58732.0,58731.0,0.912714]
[1725289757718,0.0008,58732.0,58731.0,0.916714]
[1725289758113,0.0494,58743.0,58731.0,0.916714]
[1725289758114,0.3262,58754.0,58733.0,0.085134]
[1725289758323,0.3608,58757.0,58754.0,0.085104]
[1725289758324,0.00092,58755.0,58754.0,0.085104]
[1725289758534,0.3608,58757.0,58756.0,0.085101]
[1725289760725,0.3608,58762.0,58756.0,0.085101]
[1725289760726,0.0946,58768.0,58756.0,0.201]
[1725289760924,0.085091,58764.0,58756.0,0.201]
[1725289761126,0.085086,58767.0,58762.0,0.085092]
[1725289761321,0.085086,58767.0,58757.0,0.0453]
[1725289761517,0.0004,58758.0,58757.0,0.1304]
[1725289762819,0.0004,58758.0,58757.0,0.1314]
[1725289763220,0.0004,58758.0,58757.0,0.1324]
[1725289764223,0.0004,58758.0,58757.0,0.13656232]
[1725289767426,0.0004,58758.0,58757.0,0.22166232]
[1725289770924,0.0004,58758.0,58757.0,0.13656232]
[1725289771124,0.0004,58758.0,58757.0,0.002]
[1725289771125,0.085499,58758.0,58757.0,0.002]
[1725289772340,0.531398,58758.0,58757.0,0.002]
[1725289772540,1.641958,58758.0,58757.0,0.002]
[1725289774535,1.64623924,58758.0,58757.0,0.002]
[1725289776335,1.04623924,58758.0,58757.0,0.002]
[1725289776541,1.64623924,58758.0,58757.0,0.002]
[1725289777740,1.64623924,58758.0,58748.0,0.0041943]
[1725289777741,0.085107,58752.0,58748.0,0.0041943]
[1725289777939,0.446307,58752.0,58748.0,0.0041943]
[1725289778933,0.531414,58752.0,58748.0,0.0041943]
[1725289779640,0.531414,58752.0,58751.0,0.0012553]
[1725289780143,0.532414,58752.0,58751.0,0.0022553]
[1725289780739,1.643054,58752.0,58728.0,0.3608]
[1725289780940,0.08513,58736.0,58735.0,0.00422587]
[1725289781140,0.085133,58735.0,58733.0,0.085134]
[1725289781342,0.0004,58734.0,58733.0,0.085134]
[1725289781645,0.085133,58735.0,58733.0,0.085134]
[1725289781841,0.085135,58733.0,58731.0,0.085137]
[1725289782148,0.445931,58736.0,58734.0,0.085133]
[1725289783234,0.085132,58735.0,58734.0,0.085133]
[1725289784441,0.087132,58735.0,58734.0,0.086133]
[1725289784743,0.002,58735.0,58734.0,0.086133]
[1725289785141,0.002,58735.0,58734.0,0.088133]
[1725289785737,0.002,58735.0,58734.0,0.086133]
[1725289785946,0.002,58735.0,58734.0,0.088133]
[1725289786452,0.085127,58739.0,58738.0,0.085128]
[1725289786948,0.04825454,58740.0,58739.0,0.085126]
[1725289787146,0.00025454,58740.0,58739.0,0.285126]
[1725289787348,0.00025454,58740.0,58739.0,0.418052]
[1725289787557,0.00025454,58740.0,58739.0,0.466252]
[1725289789040,0.00025454,58740.0,58739.0,0.551378]
[1725289789252,0.00125454,58740.0,58739.0,0.551378]
[1725289789649,0.00225454,58740.0,58739.0,0.551378]
[1725289790037,0.00125454,58740.0,58739.0,0.551378]
[1725289790253,0.00225454,58740.0,58739.0,0.466252]
[1725289791748,0.00225454,58740.0,58739.0,0.551378]
[1725289793357,0.00225454,58740.0,58739.0,1.662098]
[1725289795757,0.00225454,58740.0,58739.0,1.062098]
[1725289796057,0.00225454,58740.0,58739.0,1.662098]
[1725289796353,5.4e-07,58740.0,58739.0,1.662098]
[1725289796958,5.4e-07,58740.0,58739.0,0.418052]
[1725289799543,5.4e-07,58740.0,58739.0,0.778852]
[1725289799957,0.0004,58741.0,58740.0,0.17025]
[1725289801850,0.0004,58741.0,58740.0,0.17425]
[1725289802149,0.0004,58741.0,58740.0,0.089125]
[1725289802549,0.0004,58741.0,58740.0,0.085125]
[1725289802758,0.0004,58741.0,58740.0,0.089125]
[1725289803654,0.0004,58741.0,58740.0,0.091125]
[1725289803853,0.370646,58741.0,58740.0,0.006]
[1725289804053,1.396243,58741.0,58740.0,0.006]
[1725289804263,0.085125,58740.0,58738.0,0.085126]
[1725289804453,0.0014,58741.0,58740.0,0.002]
[1725289804961,0.086523,58741.0,58740.0,0.087125]
[1725289805460,0.596243,58741.0,58740.0,0.002]
[1725289805764,1.196243,58741.0,58740.0,0.002]
[1725289806152,1.196243,58741.0,58738.0,0.001]
[1725289806153,0.085126,58739.0,58738.0,0.001]
[1725289807967,0.085129,58737.0,58736.0,0.08513]
[1725289808664,0.001,58739.0,58734.0,0.00417703]
[1725289808864,0.001,58739.0,58738.0,0.085128]
[1725289809254,0.001,58739.0,58738.0,0.170256]
[1725289809459,0.0004,58741.0,58740.0,0.085125]
[1725289809662,0.0004,58741.0,58740.0,0.285125]
[1725289810564,0.0004,58741.0,58740.0,0.37025]
[1725289810870,0.0004,58741.0,58740.0,0.88097]
[1725289811764,0.0004,58741.0,58740.0,0.88197]
[1725289812269,1.646427,58741.0,58740.0,0.088125]
[1725289812565,1.646427,58741.0,58740.0,0.092125]
[1725289812761,1.646427,58741.0,58740.0,0.094125]
[1725289813261,1.73155,58741.0,58740.0,0.094125]
[1725289813467,1.73155,58741.0,58740.0,0.096125]
[1725289814559,1.73255,58741.0,58740.0,0.092125]
[1725289815468,1.73255,58741.0,58740.0,0.008]
[1725289815672,3.04327,58741.0,58740.0,0.001]
[1725289816058,0.085133,58734.0,58733.0,0.085134]
[1725289816470,0.085128,58738.0,58729.0,0.08514]
[1725289816664,0.085141,58729.0,58728.0,0.0002553]
[1725289816867,0.085141,58729.0,58728.0,0.0853973]
[1725289817366,0.085141,58729.0,58728.0,0.0896059]
[1725289817761,0.085135,58733.0,58730.0,0.085139]
[1725289817961,0.085137,58732.0,58731.0,0.085138]
[1725289820865,0.086137,58732.0,58731.0,0.086138]
[1725289821271,0.086137,58732.0,58731.0,0.087138]
[1725289822369,0.086137,58732.0,58731.0,0.086138]
[1725289822568,0.001,58732.0,58731.0,0.372276]
[1725289822767,0.0494,58740.0,58739.0,0.085126]
[1725289822964,0.0494,58740.0,58739.0,0.285126]
[1725289823880,1.64738701,58741.0,58740.0,0.085125]
[1725289824063,1.646427,58741.0,58740.0,0.085125]
[1725289825069,1.647427,58741.0,58740.0,0.085125]
[1725289828175,1.647427,58741.0,58740.0,0.45016231]
[1725289828870,1.646427,58741.0,58740.0,0.45016231]
[1725289829078,1.647427,58741.0,58740.0,0.45016231]
[1725289830872,1.647427,58741.0,58740.0,0.62041231]
[1725289831080,1.647427,58741.0,58740.0,1.13113231]
[1725289832267,1.646427,58741.0,58740.0,1.13113231]
[1725289832463,1.646427,58741.0,58740.0,1.13913231]
[1725289832681,1.646427,58741.0,58740.0,1.14993231]
[1725289833872,1.646427,58741.0,58740.0,1.14193231]
[1725289834070,1.647427,58741.0,58740.0,0.63121231]
[1725289834467,1.647427,58741.0,58740.0,1.14193231]
[1725289834674,1.646427,58741.0,58740.0,1.14193231]
[1725289835076,1.646427,58741.0,58740.0,0.63121231]
[1725289835277,1.647427,58741.0,58740.0,0.63121231]
[1725289835587,1.647427,58741.0,58740.0,0.62121231]
[1725289835787,1.647427,58741.0,58740.0,0.62921231]
[1725289836274,1.553673,58741.0,58740.0,0.62921231]
[1725289836476,1.453205,58741.0,58740.0,1.13993231]
[1725289836677,1.261237,58741.0,58740.0,1.13993231]
[1725289837181,1.261237,58741.0,58740.0,0.71633731]
[1725289837182,1.084283,58741.0,58740.0,0.71633731]
[1725289837383,0.3262,58760.0,58759.0,0.085097]
[1725289837677,0.0483,58761.0,58760.0,0.085096]
[1725289837884,0.0483,58761.0,58760.0,0.085896]
[1725289838081,0.0474,58768.0,58767.0,0.085086]
[1725289838278,0.0474,58768.0,58767.0,0.085886]
[1725289839782,0.0474,58768.0,58767.0,0.086886]
[1725289840178,0.0474,58768.0,58767.0,0.0018]
[1725289840179,1.603764,58768.0,58767.0,0.0018]
[1725289840579,1.603764,58768.0,58767.0,0.0028]
[1725289841185,1.688848,58768.0,58767.0,0.0028]
[1725289843089,1.688848,58768.0,58767.0,0.0008]
[1725289843294,1.688848,58768.0,58767.0,0.0028]
[1725289843792,1.688848,58768.0,58767.0,0.0018]
[1725289844091,1.088848,58768.0,58767.0,0.0028]
[1725289845084,1.688848,58768.0,58767.0,0.0028]
[1725289845280,1.003764,58768.0,58767.0,0.0028]
[1725289845586,0.445884,58768.0,58767.0,0.0028]
[1725289845785,0.10016415,58773.0,58767.0,0.0028]
[1725289845988,0.085083,58770.0,58769.0,0.085082]
[1725289846189,0.085084,58768.0,58767.0,0.002]
[1725289846379,0.08509,58764.0,58761.0,0.3608]
[1725289846579,0.08509,58764.0,58763.0,0.085091]
[1725289847781,0.085093,58762.0,58761.0,0.00516829]
[1725289849190,0.445893,58762.0,58761.0,0.001]
[1725289849394,0.680706,58762.0,58761.0,0.001]
[1725289849592,0.085093,58762.0,58761.0,0.001]
[1725289849791,0.085101,58756.0,58755.0,0.3608]
[1725289850187,0.085101,58756.0,58755.0,0.36506922]
[1725289851088,0.085099,58758.0,58757.0,0.085098]
[1725289851488,0.085099,58758.0,58757.0,0.085898]
[1725289852095,0.0457,58761.0,58760.0,0.085096]
[1725289852393,0.0457,58761.0,58760.0,0.085896]
[1725289853494,0.0457,58761.0,58760.0,0.086896]
[1725289853696,0.130794,58761.0,58760.0,0.086896]
[1725289856886,0.130794,58761.0,58760.0,0.085896]
[1725289857090,0.130794,58761.0,58760.0,0.086896]
[1725289857091,0.085094,58761.0,58760.0,0.086896]
[1725289859297,0.085094,58761.0,58760.0,0.0018]
[1725289859298,0.170188,58761.0,58760.0,0.0018]
[1725289859597,0.170188,58761.0,58748.0,0.085113]
[1725289859598,0.085101,58757.0,58739.0,0.05025577]
[1725289859801,0.2,58747.0,58737.0,0.56268]
[1725289860006,0.2,58747.0,58744.0,0.3608]
[1725289860200,0.085115,58747.0,58746.0,0.085116]
[1725289860696,0.085117,58745.0,58744.0,0.3608]
[1725289861592,0.085117,58745.0,58744.0,0.445919]
[1725289861800,0.085112,58749.0,58746.0,0.085115]
[1725289862100,0.085117,58745.0,58744.0,0.3608]
[1725289862698,0.085117,58745.0,58744.0,0.3618]
[1725289862894,0.085117,58745.0,58744.0,0.001]
[1725289863292,0.085122,58742.0,58741.0,0.0002553]
[1725289863603,0.285122,58742.0,58741.0,0.0002553]
[1725289864005,0.285122,58742.0,58741.0,0.00452816]
[1725289865802,0.285122,58742.0,58741.0,0.00552816]
[1725289866597,0.285122,58742.0,58741.0,0.0022553]
[1725289866801,1.566086,58742.0,58741.0,0.0012553]
[1725289867095,1.566086,58742.0,58741.0,0.0022553]
[1725289867797,0.170276,58731.0,58730.0,0.3608]
[1725289868003,0.170676,58731.0,58730.0,0.3608]
[1725289868800,0.085141,58729.0,58728.0,0.00427822]
[1725289869004,0.085145,58726.0,58725.0,0.3610553]
[1725289869200,0.084545,58726.0,58725.0,0.0002553]
[1725289869403,0.084145,58726.0,58725.0,0.00456661]
[1725289869703,0.082145,58726.0,58725.0,0.0002553]
[1725289870512,0.3608,58727.0,58725.0,0.0002553]
[1725289870701,0.0004,58729.0,58726.0,0.0004]
[1725289870902,0.0004,58729.0,58728.0,0.2004]
[1725289871205,0.0004,58729.0,58728.0,0.085142]
[1725289872297,0.0004,58729.0,58726.0,0.0004]
[1725289872503,0.285543,58727.0,58726.0,0.0004]
[1725289872703,0.285543,58727.0,58726.0,0.085545]
[1725289873904,0.085543,58727.0,58726.0,0.085545]
[1725289874706,0.085543,58727.0,58726.0,0.08985939]
[1725289874907,0.089543,58727.0,58726.0,0.08985939]
[1725289875311,0.289543,58727.0,58726.0,0.00471439]
[1725289875712,0.289543,58727.0,58726.0,0.00671439]
[1725289875902,0.290543,58727.0,58726.0,0.00671439]
[1725289876717,0.290543,58727.0,58726.0,0.00571439]
[1725289877032,0.290543,58727.0,58726.0,0.00671439]
[1725289879027,0.290543,58727.0,58726.0,0.09185939]
[1725289879325,0.0054,58727.0,58726.0,0.09185939]
[1725289880123,0.0064,58727.0,58726.0,0.09185939]
[1725289880320,0.091543,58727.0,58726.0,0.09185939]
[1725289880831,0.091543,58727.0,58726.0,0.00671439]
[1725289881129,0.090543,58727.0,58726.0,0.00571439]
[1725289882831,0.090543,58727.0,58726.0,0.00671439]
[1725289883020,0.090543,58727.0,58726.0,0.00571439]
[1725289883226,0.089543,58727.0,58726.0,0.00671439]
[1725289884230,0.089543,58727.0,58726.0,0.0024]
[1725289885925,0.09387294,58727.0,58726.0,0.0024]
[1725289886620,0.09287294,58727.0,58726.0,0.0014]
[1725289886825,0.09387294,58727.0,58726.0,0.0024]
[1725289887221,0.09387294,58727.0,58712.0,0.3608]
[1725289887222,0.60872994,58727.0,58712.0,0.3608]
[1725289887423,0.285164,58713.0,58712.0,0.3608]
[1725289887635,0.285564,58713.0,58712.0,0.3608]
[1725289889036,0.285564,58713.0,58711.0,0.00423659]
[1725289889037,0.085165,58712.0,58711.0,0.00423659]
[1725289889227,0.085169,58710.0,58708.0,0.08517]
[1725289889433,0.0004,58709.0,58708.0,0.08517]
[1725289890332,0.28557,58709.0,58708.0,0.001]
[1725289890935,0.085171,58708.0,58707.0,0.0002553]
[1725289891138,0.085571,58708.0,58707.0,0.00439745]
[1725289891434,0.085571,58708.0,58707.0,0.0002553]
[1725289891636,0.0004,58708.0,58707.0,0.0002553]
[1725289892447,0.0004,58708.0,58707.0,0.0854273]
[1725289893331,0.0024,58708.0,58707.0,0.0864273]
[1725289893532,0.0064,58708.0,58707.0,0.0864273]
[1725289895846,0.0054,58708.0,58707.0,0.0864273]
[1725289896039,0.0034,58708.0,58707.0,0.0854273]
[1725289896230,0.0054,58708.0,58707.0,0.0864273]
[1725289896639,0.0034,58708.0,58707.0,0.0854273]
[1725289896846,0.0054,58708.0,58707.0,0.0864273]
[1725289901233,0.0054,58708.0,58707.0,0.0012553]
[1725289901234,0.175742,58708.0,58707.0,0.0012553]
[1725289901434,0.621713,58708.0,58707.0,0.0012553]
[1725289901739,0.08519,58695.0,58691.0,0.1452]
[1725289901937,0.2004,58692.0,58691.0,0.1452]
[1725289902143,0.2004,58692.0,58691.0,0.14954814]
[1725289902334,0.285594,58692.0,58691.0,0.23474414]
[1725289902537,0.085594,58692.0,58691.0,0.23474414]
[1725289903139,0.085594,58692.0,58691.0,0.10254414]
[1725289903340,0.285594,58692.0,58691.0,0.01734814]
[1725289903841,0.0004,58692.0,58691.0,0.01734814]
[1725289904150,0.0034,58692.0,58691.0,0.10354414]
[1725289905146,0.090594,58692.0,58691.0,0.09054414]
[1725289905545,0.090594,58692.0,58691.0,0.00534814]
[1725289905745,0.451394,58692.0,58691.0,0.00534814]
[1725289905947,0.536588,58692.0,58691.0,0.00534814]
[1725289908456,0.536588,58692.0,58691.0,0.001]
[1725289908667,0.085202,58687.0,58686.0,0.00025551]
[1725289908959,0.646402,58687.0,58686.0,0.00025551]
[1725289909147,1.757602,58687.0,58686.0,0.00025551]
[1725289909557,0.731604,58687.0,58686.0,0.00025551]
[1725289909957,0.731604,58687.0,58686.0,0.00325551]
[1725289910163,0.734604,58687.0,58686.0,0.00425551]
[1725289910657,0.74297061,58687.0,58686.0,0.00425551]
[1725289911257,0.731604,58687.0,58686.0,0.00325551]
[1725289911559,0.734604,58687.0,58686.0,0.00425551]
[1725289912352,0.734604,58687.0,58672.0,0.19595577]
[1725289912353,0.085219,58675.0,58674.0,0.05025577]
[1725289912557,0.085219,58675.0,58670.0,0.05025577]
[1725289912558,0.2004,58675.0,58670.0,0.05025577]
[1725289912749,0.285625,58671.0,58670.0,0.00428507]
[1725289912953,0.285225,58671.0,58667.0,0.05025577]
[1725289913262,0.0004,58668.0,58667.0,0.085231]
[1725289914360,0.0004,58668.0,58663.0,0.00025551]
[1725289914361,0.085235,58664.0,58663.0,0.00025551]
[1725289914748,0.084235,58664.0,58663.0,0.00025551]
[1725289916362,0.451035,58664.0,58663.0,0.00125551]
[1725289917261,0.451035,58664.0,58663.0,0.00625551]
[1725289917859,0.451035,58664.0,58663.0,0.00125551]
[1725289918061,0.459035,58664.0,58663.0,0.00225551]
[1725289919055,0.452035,58664.0,58663.0,0.00125551]
[1725289919256,0.459035,58664.0,58663.0,0.00225551]
[1725289920859,0.454035,58664.0,58663.0,0.00125551]
[1725289921560,0.085245,58657.0,58653.0,0.3608]
[1725289921766,0.5608,58658.0,58653.0,0.36507234]
[1725289921966,0.5608,58658.0,58657.0,0.0004]
[1725289923166,0.5638,58658.0,58657.0,0.0014]
[1725289923762,0.5648,58658.0,58657.0,0.0014]
[1725289923965,0.650044,58658.0,58657.0,0.0014]
[1725289924164,0.697144,58658.0,58657.0,0.0014]
[1725289924963,0.336344,58658.0,58657.0,0.0014]
[1725289926661,0.004,58658.0,58657.0,0.2014]
[1725289926967,0.004,58658.0,58657.0,1.398085]
[1725289927165,0.004,58658.0,58657.0,1.53358577]
[1725289927357,0.00025551,58663.0,58662.0,0.085238]
[1725289927561,0.00025551,58663.0,58662.0,0.085638]
[1725289928375,0.00025551,58663.0,58662.0,0.0004]
[1725289928376,0.20025551,58663.0,58662.0,0.0004]
[1725289928563,0.28549151,58663.0,58662.0,0.0004]
[1725289928764,0.00025551,58663.0,58662.0,0.085638]
[1725289929457,0.00625551,58663.0,58662.0,0.086638]
[1725289930564,0.00625551,58663.0,58662.0,0.09080341]
[1725289930762,0.00625551,58663.0,58662.0,0.10180341]
[1725289931070,0.00625551,58663.0,58662.0,1.29844141]
[1725289931662,0.00625551,58663.0,58662.0,1.21320341]
[1725289931971,0.00225551,58663.0,58662.0,1.21220341]
[1725289932468,0.00025551,58663.0,58662.0,1.21220341]
[1725289932878,0.00125551,58663.0,58662.0,1.20120341]
[1725289933467,0.00125551,58663.0,58662.0,0.60120341]
[1725289933666,0.08549151,58663.0,58662.0,0.00856541]
[1725289933873,0.08549151,58663.0,58662.0,0.00956541]
[1725289934371,0.53152751,58663.0,58662.0,0.0014]
[1725289934564,0.53152751,58663.0,58662.0,0.0074]
[1725289935470,0.53352751,58663.0,58662.0,0.0064]
[1725289935975,0.44629151,58663.0,58662.0,0.0063994]
[1725289936169,0.53352751,58663.0,58662.0,0.0073994]
[1725289936376,0.53352751,58663.0,58662.0,0.0033994]
[1725289936770,1.64492751,58663.0,58662.0,0.0033994]
[1725289937071,1.64492751,58663.0,58662.0,0.003]
[1725289937573,1.64992751,58663.0,58662.0,0.002]
[1725289938370,0.085251,58653.0,58652.0,0.00017047]
[1725289938569,0.285251,58653.0,58652.0,0.00017047]
[1725289939488,0.370502,58653.0,58652.0,0.00017047]
[1725289939670,0.417902,58653.0,58652.0,0.00117047]
[1725289940177,0.417902,58653.0,58652.0,0.00517047]
[1725289942475,0.287251,58653.0,58652.0,0.00517047]
[1725289942678,0.087251,58653.0,58652.0,0.00517047]
[1725289943177,0.287251,58653.0,58652.0,0.00517047]
[1725289943478,0.372502,58653.0,58652.0,0.00517047]
[1725289943678,0.287251,58653.0,58652.0,0.00517047]
[1725289945774,0.372502,58653.0,58652.0,0.00517047]
[1725289945975,0.287251,58653.0,58652.0,0.00517047]
[1725289946676,0.372502,58653.0,58652.0,0.00517047]
[1725289947281,0.287251,58653.0,58652.0,0.00517047]
[1725289953683,0.372502,58653.0,58652.0,0.00517047]
[1725289953893,0.287251,58653.0,58652.0,0.00517047]
[1725289960987,0.002,58653.0,58652.0,0.09042247]
[1725289961491,0.202,58653.0,58652.0,0.00517047]
[1725289961793,0.372502,58653.0,58652.0,0.00517047]
[1725289962993,0.418402,58653.0,58652.0,0.00517047]
[1725289963989,0.503653,58653.0,58652.0,0.00517047]
[1725289964203,0.085268,58641.0,58640.0,0.0943]
[1725289964590,0.085268,58641.0,58640.0,0.09862617]
[1725289964995,0.285268,58641.0,58640.0,0.09862617]
[1725289965200,0.08527,58640.0,58638.0,0.3608]
[1725289965389,0.08027,58640.0,58638.0,0.3608]
[1725289965899,0.2,58641.0,58635.0,0.085277]
[1725289966194,0.186,58636.0,58635.0,0.08946084]
[1725289966698,0.271276,58636.0,58635.0,0.00418384]
[1725289966995,0.271276,58636.0,58632.0,0.085281]
[1725289967191,0.271276,58636.0,58635.0,0.014]
[1725289967399,0.265276,58636.0,58635.0,0.014]
[1725289969001,0.265276,58636.0,58633.0,0.08528]
[1725289969185,0.268276,58636.0,58633.0,0.08528]
[1725289969590,0.003,58636.0,58635.0,0.085277]
[1725289969999,0.003,58636.0,58635.0,0.446077]
[1725289970194,0.3608,58643.0,58642.0,0.085267]
[1725289970591,0.3608,58643.0,58642.0,0.085667]
[1725289971499,0.085265,58643.0,58642.0,0.0004]
[1725289972191,0.085265,58643.0,58642.0,0.00470977]
[1725289972393,0.099265,58643.0,58642.0,0.0014]
[1725289972791,0.107265,58643.0,58642.0,0.0014]
[1725289972996,0.022,58643.0,58642.0,0.286667]
[1725289973592,0.0224,58643.0,58642.0,0.29093554]
[1725289973793,0.0224,58643.0,58642.0,0.09093554]
[1725289976191,0.0224,58643.0,58642.0,0.37620254]
[1725289977009,0.4104,58656.0,58642.0,0.37620254]
[1725289977010,0.3608,58663.0,58662.0,0.085238]
[1725289977209,0.3608,58663.0,58662.0,0.085638]
[1725289978499,0.3748,58663.0,58662.0,0.086638]
[1725289978910,0.3888,58663.0,58662.0,0.087638]
[1725289979200,0.028,58663.0,58662.0,0.087638]
[1725289979798,0.021,58663.0,58662.0,0.087638]
[1725289980698,0.085233,58666.0,58663.0,0.085236]
[1725289980893,0.085233,58666.0,58665.0,0.0004]
[1725289982507,0.446033,58666.0,58665.0,0.0004]
[1725289982893,0.531266,58666.0,58665.0,0.0004]
[1725289983298,0.539266,58666.0,58665.0,0.0014]
[1725289983700,0.539266,58666.0,58665.0,0.0024]
[1725289985896,1.650626,58666.0,58665.0,0.0024]
[1725289986209,0.085244,58658.0,58657.0,0.00025574]
[1725289986400,0.646044,58658.0,58657.0,0.00025574]
[1725289986705,0.646444,58658.0,58657.0,0.00025574]
[1725289987304,0.647444,58658.0,58657.0,0.00125574]
[1725289988507,0.647444,58658.0,58657.0,0.00225574]
[1725289989216,0.661444,58658.0,58657.0,0.00225574]
[1725289990516,0.461444,58658.0,58657.0,0.08750074]
[1725289990905,0.3762,58658.0,58657.0,0.08750074]
[1725289991415,0.0154,58658.0,58657.0,0.08750074]
[1725289991599,0.0154,58658.0,58657.0,0.13390074]
[1725289991909,0.0014,58658.0,58657.0,0.13290074]
[1725289992210,0.0154,58658.0,58657.0,1.24534074]
[1725289992413,0.0154,58658.0,58657.0,1.60614074]
[1725289992597,0.0154,58658.0,58657.0,1.69138574]
[1725289992802,0.0014,58658.0,58657.0,1.69138574]
[1725289992999,0.0074,58658.0,58657.0,1.69138574]
[1725289994001,0.0074,58658.0,58657.0,1.69560696]
[1725289994711,0.0014,58658.0,58657.0,1.69460696]
[1725289994906,0.0004,58658.0,58657.0,1.69360696]
[1725289995213,0.0004,58658.0,58657.0,1.69460696]
[1725289995214,0.0014,58658.0,58657.0,1.69460696]
[1725289995609,0.0014,58658.0,58657.0,1.69760696]
[1725289996007,0.0014,58658.0,58657.0,1.09760696]
[1725289996210,0.0004,58658.0,58657.0,1.09660696]
[1725289996411,0.0014,58658.0,58657.0,1.09860696]
[1725289997007,0.0014,58658.0,58657.0,1.69860696]
[1725289997716,0.0014,58658.0,58657.0,1.09860696]
[1725289998114,0.0014,58658.0,58657.0,1.09660696]
[1725289998417,0.0014,58658.0,58657.0,1.69660696]
[1725289998715,0.0014,58658.0,58657.0,1.09660696]
[1725289998912,0.0014,58658.0,58657.0,1.09760696]
[1725289999114,0.0004,58658.0,58657.0,0.58516696]
[1725289999313,0.0004,58658.0,58657.0,0.58616696]
[1725289999314,0.0014,58658.0,58657.0,0.58616696]
[1725289999515,0.0014,58658.0,58657.0,0.50092196]
[1725289999813,0.0014,58658.0,58657.0,1.01236196]
[1725290000014,0.0014,58658.0,58657.0,0.50092196]
[1725290000209,0.0014,58658.0,58657.0,1.01236196]
[1725290000510,0.0014,58658.0,58657.0,0.50092196]
[1725290000905,0.0014,58658.0,58657.0,0.45452196]
[1725290001105,0.371888,58658.0,58657.0,0.00425574]
[1725290001309,0.732688,58658.0,58657.0,0.00425574]
[1725290001605,0.732688,58658.0,58657.0,0.00325574]
[1725290002114,0.647444,58658.0,58657.0,0.00325574]
[1725290002312,0.647444,58658.0,58657.0,0.00125574]
[1725290002313,0.649444,58658.0,58657.0,0.00125574]
[1725290002705,0.648444,58658.0,58657.0,0.00025574]
[1725290002905,0.649444,58658.0,58657.0,0.00125574]
[1725290004115,0.449444,58658.0,58657.0,0.00125574]
[1725290004415,0.3642,58658.0,58657.0,0.08650074]
[1725290005010,0.3622,58658.0,58657.0,0.08650074]
[1725290005215,0.3762,58658.0,58657.0,0.08750074]
[1725290005707,0.0154,58658.0,58657.0,0.28750074]
[1725290005910,0.0014,58658.0,58657.0,0.33660074]
[1725290006109,0.0094,58658.0,58657.0,0.33560074]
[1725290006308,0.0104,58658.0,58657.0,1.53328574]
[1725290006617,0.00025574,58668.0,58657.0,1.53328574]
[1725290006618,0.00025574,58668.0,58667.0,0.085231]
[1725290006816,0.00025574,58668.0,58667.0,1.246031]
[1725290007113,0.00419366,58687.0,58684.0,0.085205]
[1725290007318,1.25100697,58694.0,58677.0,0.3608]
[1725290007319,0.2,58686.0,58677.0,0.3608]
[1725290007520,0.085204,58686.0,58678.0,0.2]
[1725290007729,0.085206,58684.0,58681.0,0.085209]
[1725290009306,0.086206,58684.0,58681.0,0.086209]
[1725290009506,0.090206,58684.0,58681.0,0.086209]
[1725290009916,0.090206,58684.0,58681.0,0.447009]
[1725290010323,0.086206,58684.0,58681.0,0.447009]
[1725290011817,0.086206,58684.0,58681.0,0.45122685]
[1725290012010,0.001,58684.0,58681.0,0.36601785]
[1725290012215,0.007,58684.0,58681.0,0.00521785]
[1725290012421,0.007,58684.0,58683.0,0.085207]
[1725290013221,0.005,58684.0,58683.0,0.085207]
[1725290014414,0.005,58684.0,58681.0,0.00521785]
[1725290014617,0.0004,58682.0,58681.0,0.001]
[1725290015229,0.0004,58682.0,58679.0,0.08938107]
[1725290015919,0.093609,58682.0,58681.0,0.002]
[1725290016110,0.093209,58682.0,58681.0,0.002]
[1725290016713,0.093209,58682.0,58681.0,0.001]
[1725290017316,0.293209,58682.0,58681.0,0.001]
[1725290017518,0.293209,58682.0,58679.0,0.001]
[1725290017519,0.170424,58680.0,58679.0,0.001]
[1725290017722,0.170824,58680.0,58679.0,0.002]
[1725290018117,0.267124,58680.0,58679.0,0.001]
[1725290018812,0.085215,58678.0,58677.0,0.00025574]
[1725290019019,0.37083,58678.0,58677.0,0.00025574]
[1725290020525,0.37783,58678.0,58677.0,0.00125574]
[1725290021318,0.974325,58678.0,58677.0,0.00125574]
[1725290021611,0.974325,58678.0,58663.0,0.00435055]
[1725290021612,0.085235,58664.0,58663.0,0.00435055]
[1725290021814,0.085635,58664.0,58661.0,0.446039]
[1725290022025,0.0004,58662.0,58661.0,0.446039]
[1725290022226,0.0004,58664.0,58663.0,0.170472]
[1725290022414,0.0004,58664.0,58663.0,0.170872]
[1725290022715,0.0004,58664.0,58663.0,1.282272]
[1725290022913,0.0004,58664.0,58663.0,1.283272]
[1725290024322,0.0004,58664.0,58663.0,1.198036]
[1725290024528,0.0004,58664.0,58663.0,0.086636]
[1725290024828,0.0014,58664.0,58663.0,0.087636]